Workbook

Sheet Facturation 2023_2024
B2: 1 | C2: 2023-001 | D2: TOP GUN / CODE&CLICS | J2: 1774 | K2: 354.8 | L2: 2128.8
B3: 2 | C3: 2023-002 | D3: JF IMPRESSION/JF IMPRESSION | J3: 546 | K3: 109.2 | L3: 655.2
B4: 3 | C4: 2023-003 | D4: JF IMPRESSION/JF IMPRESSION | J4: 400 | K4: 80 | L4: 480
B5: 4 | C5: 2023-004 | D5: IEL/IEL | J5: 95 | K5: 19 | L5: 114
B6: 5 | C6: 2023-005 | D6: FAURITE/FAURITE | J6: 385.5 | K6: 77.1 | L6: 462.6
F7: ACHATS | J7: VENTES | M7: Solde et taux TVA
C8: N° de facture | D8: Clients / Fournisseurs | F8: PA HT | G8: TVA | H8: PA TTC | J8: PV HT | K8: TVA | L8: PV TTC
D9: NOVEMBRE 2023 | F9: =SUM(F2:F6) -> 0 | G9: =SUM(G2:G6) -> 0 | H9: 0 | J9: 3200.5 | K9: 640.1 | L9: 3840.6 | M9: =K9-G9 -> 640.1
B10: 1 | C10: 2023-006 | D10: FAURITE/FAURITE | J10: 178.75 | K10: 35.75 | L10: 214.5
B11: 2 | C11: 2023-007 | D11: SUD ROUTAGE/SUD ROUTAGE | J11: 100 | K11: 20 | L11: 120
B12: 3 | C12: 2023-008 | D12: CHAPONNIERE & FIRMENICH SA / CODE&CLICS | J12: 6334 | K12: 0 | L12: 6334 | M12: 0
B13: 4 | C13: 2023-009 | D13: HILAIRE / CODE&CLICS | J13: 160 | K13: 32 | L13: 192
B14: 5 | C14: 2023-010 | D14: A.E.D.C.P / CODE&CLICS | J14: 375 | K14: 75 | L14: 450
B15: 6 | C15: 2023-011 | D15: TOSHIBA / CODE&CLICS | J15: 80 | K15: 16 | L15: 96
B16: 7 | C16: 2023-012 | D16: SAFER / CODE&CLICS | J16: 170 | K16: 34 | L16: 204
B17: 8 | C17: 2023-013 | D17: EFOR AIX-EN-PROVENCE / SIC IMPRESSION 1/4 | F17: 174.75 | G17: 34.95 | H17: 209.7 | J17: 419.1 | K17: 83.82 | L17: 502.92
B18: 9 | C18: 2023-014 | D18: EKNO / CODE&CLICS | J18: 179 | K18: 35.8 | L18: 214.8
B19: 10 | C19: 2023-015 | D19: ACTICONSEIL / CODE&CLICS | J19: 280 | K19: 56 | L19: 336
B20: 11 | C20: 2023-016 | D20: FUJIFILM Healthcare France SAS / SIC IMPRESSION | F20: 61 | G20: 12.2 | H20: 73.2 | J20: 270 | K20: 54 | L20: 324
B21: 12 | C21: 2023-017 | D21: OPERA DE LYON / FAURITE | F21: 365 | G21: 73 | H21: 438 | J21: 467 | K21: 93.4 | L21: 560.4
B22: 13 | C22: 2023-018 | D22: ASSOCIATION ARBRES / JF IMPRESSION | F22: 572 | G22: 114.4 | H22: 686.4 | J22: 1015 | K22: 203 | L22: 1218
B23: 14 | C23: 2023-019 | D23: SOCIETE LINNEENNE DE LYON / CODE&CLICS | J23: 1644 | K23: 164.4 | L23: 1808.4 | M23: 10
B24: 15 | C24: 2023-020 | D24: SLH / CODE&CLICS | J24: 996 | K24: 99.6 | L24: 1095.6 | M24: 10
B25: 16 | C25: 2023-021 | D25: JF IMPRESSION/JF IMPRESSION | J25: 450 | K25: 90 | L25: 540
B26: 17 | C26: 2023-022 | D26: SUD ROUTAGE/SUD ROUTAGE | J26: 100 | K26: 20 | L26: 120
B27: 18 | C27: 2023-023 | D27: CVO EUROPE / SIC IMPRESSION 2/4 | F27: 174.75 | G27: 34.95 | H27: 209.7 | J27: 419.1 | K27: 83.82 | L27: 502.92
B28: 19 | C28: 2023-024 | D28: EFOR BELFORT / SIC IMPRESSION 3/4 | F28: 174.5 | G28: 34.9 | H28: 209.4 | J28: 279.4 | K28: 55.88 | L28: 335.28
B29: 20 | C29: 2023-025 | D29: SOLADIS / SIC IMPRESSION 4/4 | F29: 174.5 | G29: 34.9 | H29: 209.4 | J29: 279.4 | K29: 55.88 | L29: 335.28
F30: ACHATS | J30: VENTES | M30: Solde et taux TVA
C31: N° de facture | D31: Clients / Fournisseurs | F31: PA HT | G31: TVA | H31: PA TTC | J31: PV HT | K31: TVA | L31: PV TTC
D32: DECEMBRE 2023 | F32: =SUM(F10:F29) -> 1696.5 | G32: =SUM(G10:G29) -> 339.3 | H32: 2035.8 | J32: 14195.75 | K32: 1308.35 | L32: 15504.1 | M32: =K32-G32 -> 969.05
B33: 1 | C33: 2024-001 | D33: FUJIFILM Healthcare France SAS / CODE&CLICS | J33: 70 | K33: 14 | L33: 84
B34: 2 | C34: 2024-002 | D34: EKNO / CODE&CLICS | J34: 397 | K34: 79.4 | L34: 476.4
B35: 3 | C35: 2024-003 | D35: EKNO / CODE&CLICS | J35: 334 | K35: 66.8 | L35: 400.8
B36: 4 | C36: 2024-004 | D36: SAFER / CODE&CLICS | J36: 150 | K36: 30 | L36: 180
B37: 5 | C37: 2024-005 | D37: SOCIETE IMTERVAL / CODE&CLICS | J37: 143 | K37: 28.6 | L37: 171.6
B38: 6 | C38: 2024-006 | D38: OPERA DE LYON / FAURITE | F38: 365 | G38: 73 | H38: 438 | J38: 467 | K38: 93.4 | L38: 560.4
B39: 7 | C39: 2024-007 | D39: OPERA DE LYON / FAURITE | F39: 365 | G39: 73 | H39: 438 | J39: 467 | K39: 93.4 | L39: 560.4
B40: 8 | C40: 2024-008 | D40: UXELLO / IEL | F40: 315 | G40: 63 | H40: 378 | J40: 1060 | K40: 212 | L40: 1272
B41: 9 | C41: 2024-009 | D41: EKNO / SIC IMPRESSION | F41: 46 | G41: 9.2 | H41: 55.2 | J41: 220 | K41: 44 | L41: 264
B42: 10 | C42: 2024-010 | D42: À BOIRE ETC. / CODE&CLICS | J42: 170 | K42: 34 | L42: 204
B43: 11 | C43: 2024-011 | D43: SAFER / CODE&CLICS | F43: 60 | G43: 12 | H43: 72 | J43: 130 | K43: 26 | L43: 156
B44: 12 | C44: 2024-012 | D44: OPERA DE LYON / FAURITE | F44: 757 | G44: 151.4 | H44: 908.4 | J44: 1535 | K44: 307 | L44: 1842
B45: 13 | C45: 2024-013 | D45: LIBE-LUNE aide à domicile / SIC IMPRESSION | F45: 369.51 | G45: 73.902 | H45: 443.412 | J45: 630 | K45: 126 | L45: 756
B46: 14 | C46: 2024-014 | D46: C.C.A.S / France Enveloppes | F46: 256.4 | G46: 51.28 | H46: 307.68 | J46: 512.8 | K46: 102.56 | L46: 615.36
B47: 15 | C47: 2024-015 | D47: INSTITUT CURIE / SIC IMPRESSION | F47: 731.68 | G47: 146.336 | H47: 878.016 | J47: 1340 | K47: 268 | L47: 1608
B48: 16 | C48: 2024-016 | D48: FUJIFILM Healthcare France SAS / CODE&CLICS | F48: 72 | G48: 14.4 | H48: 86.4 | J48: 80 | K48: 16 | L48: 96
B49: 17 | C49: 2024-017 | D49: TOSHIBA / CODE&CLICS | J49: 80 | K49: 16 | L49: 96
B50: 18 | C50: 2024-018 | D50: OPERA DE LYON / CODE&CLICS | F50: 141 | G50: 28.2 | H50: 169.2 | J50: 227 | K50: 45.4 | L50: 272.4
B51: 19 | C51: 2024-019 | D51: FUJIFILM Healthcare France SAS / FAURITE | F51: 1445 | G51: 289 | H51: 1734 | J51: 2855 | K51: 571 | L51: 3426
B52: 20 | C52: 2024-020 | D52: LIBE-LUNE aide à domicile / FAURITE | F52: 405 | G52: 81 | H52: 486 | J52: 595 | K52: 119 | L52: 714
B53: 21 | C53: 2024-021 | D53: SUD ROUTAGE/SUD ROUTAGE | J53: 100 | K53: 20 | L53: 120
B54: 22 | C54: 2024-022 | D54: JF IMPRESSION/JF IMPRESSION | J54: 380 | K54: 76 | L54: 456
B55: 23 | C55: 2024-023 | D55: ASSOCIATION DU PATRIMOINE MILITAIRE DE LYON ET DE SA RÉGION/ COPIDEM | F55: 50 | G55: 10 | H55: 60 | J55: 130 | K55: 26 | L55: 156
F56: ACHATS | J56: VENTES | M56: Solde et taux TVA
C57: N° de facture | D57: Clients / Fournisseurs | F57: PA HT | G57: TVA | H57: PA TTC | J57: PV HT | K57: TVA | L57: PV TTC
D58: JANVIER 2024 | F58: =SUM(F33:F55) -> 5378.59 | G58: =SUM(G33:G55) -> 1075.718 | H58: 6454.308 | J58: 12072.8 | K58: 2414.56 | L58: 14487.36 | M58: =K58-G58 -> 1338.842
B59: 1 | C59: 2024-024 | D59: CODE&CLICS / CODE&CLICS | J59: 3205.9 | K59: 641.18 | L59: 3847.08
B60: 2 | C60: 2024-025 | D60: LA PAROISSE DE BRIGNAIS / CODE&CLICS | F60: 256 | G60: 51.2 | H60: 307.2 | J60: 436 | K60: 87.2 | L60: 523.2
B61: 3 | C61: 2024-026 | D61: SIC - Réseau ACV France / CODE&CLICS | F61: 88 | G61: 17.6 | H61: 105.6 | J61: 125 | K61: 25 | L61: 150
B62: 4 | C62: 2024-027 | D62: SCGA BGR / CODE&CLICS | F62: 69 | G62: 13.8 | H62: 82.8 | J62: 156 | K62: 31.2 | L62: 187.2
B63: 5 | C63: 2024-028 | D63: FUJIFILM Healthcare France SAS / CODE&CLICS | J63: 80 | K63: 16 | L63: 96
B64: 6 | C64: 2024-029 | D64: ACTICONSEIL / CODE&CLICS | F64: 70 | G64: 14 | H64: 84 | J64: 99 | K64: 19.8 | L64: 118.8
B65: 7 | C65: 2024-030 | D65: HILAIRE / CODE&CLICS | F65: 110 | G65: 22 | H65: 132 | J65: 160 | K65: 32 | L65: 192
B66: 8 | C66: 2024-031 | D66: SAFER / CODE&CLICS | F66: 261 | G66: 52.2 | H66: 313.2 | J66: 362 | K66: 72.4 | L66: 434.4
B67: 9 | C67: 2024-032 | D67: SAFER / JF IMPRESSION | F67: 439 | G67: 87.8 | H67: 526.8 | J67: 1276 | K67: 255.2 | L67: 1531.2
B68: 10 | C68: 2024-033 | D68: SAFER / CODE&CLICS | F68: 146 | G68: 29.2 | H68: 175.2 | J68: 195 | K68: 39 | L68: 234
B69: 11 | C69: 2024-034 | D69: TOSHIBA / CODE&CLICS | F69: 73 | G69: 14.6 | H69: 87.6 | J69: 140 | K69: 28 | L69: 168
B70: 12 | C70: 2024-035 | D70: RAPHAELE ANIS SARL / IEL | F70: 156 | G70: 31.2 | H70: 187.2 | J70: 312 | K70: 62.4 | L70: 374.4
B71: 13 | C71: 2024-036 | D71: L'ATELIER GRAPHIQUE / CODE&CLICS | F71: 266 | G71: 53.2 | H71: 319.2 | J71: 341 | K71: 68.2 | L71: 409.2
B72: 14 | C72: 2024-037 | D72: EKNO / CODE&CLICS | F72: 447 | G72: 89.4 | H72: 536.4 | J72: 608 | K72: 121.6 | L72: 729.6
B73: 15 | C73: 2024-038 | D73: Opéra de Lyon / CODE&CLICS | F73: 77 | G73: 15.4 | H73: 92.4 | J73: 154.9 | K73: 30.98 | L73: 185.88
B74: 16 | C74: 2024-039 | D74: HERMES / DS IMPRESSION | F74: 100 | G74: 20 | H74: 120 | J74: 167 | K74: 33.4 | L74: 200.4
B75: 17 | C75: 2024-040 | D75: JF IMPRESSION/JF IMPRESSION | J75: 1000 | K75: 200 | L75: 1200
B76: 18 | C76: 2024-041 | D76: JF IMPRESSION/JF IMPRESSION | J76: 1000 | K76: 200 | L76: 1200
B77: 19 | C77: 2024-042 | D77: SAFER / SIC IMPRESSION | F77: 42.76 | G77: 8.552 | H77: 51.312 | J77: 125 | K77: 25 | L77: 150
B78: 20 | C78: 2024-043 | D78: SAFER / SIC IMPRESSION | F78: 87.14 | G78: 17.428 | H78: 104.568 | J78: 190 | K78: 38 | L78: 228
B79: 21 | C79: 2024-044 | D79: OPERA DE LYON / IMPRIMATUR | F79: 480 | G79: 96 | H79: 576 | J79: 934 | K79: 186.8 | L79: 1120.8
B80: 22 | C80: 2024-045 | D80: SIC - Réseau ACV France / JF IMPRESSION | F80: 665 | G80: 133 | H80: 798 | J80: 988 | K80: 197.6 | L80: 1185.6
B81: 23 | C81: 2024-046 | D81: LIBE-LUNE aide à domicile / FAURITE | F81: 360 | G81: 72 | H81: 432 | J81: 600 | K81: 120 | L81: 720
B82: 24 | C82: 2024-047 | D82: IMPRIMATUR/IMPRIMATUR | J82: 2000 | K82: 400 | L82: 2400
B83: 25 | C83: 2024-048 | D83: CODE&CLICS/CODE&CLICS | J83: 1138.55 | K83: 227.71 | L83: 1366.26
B84: 26 | C84: 2024-049 | D84: JF IMPRESSION/JF IMPRESSION | J84: 340 | K84: 68 | L84: 408
F85: ACHATS | J85: VENTES | M85: Solde et taux TVA
C86: N° de facture | D86: Clients / Fournisseurs | F86: PA HT | G86: TVA | H86: PA TTC | J86: PV HT | K86: TVA | L86: PV TTC
D87: FEVRIER 2024 | F87: =SUM(F59:F84) -> 4192.9 | G87: =SUM(G59:G84) -> 838.58 | H87: 5031.48 | J87: 16133.35 | K87: 3226.67 | L87: 19360.02 | M87: =K87-G87 -> 2388.09
B88: 1 | C88: 2024-050 | D88: ACJM / CODE&CLICS | J88: 2569 | K88: 141.295 | L88: 2710.295 | M88: 5.5
B89: 2 | C89: 2024-051 | D89: SIC - Réseau ACV France / SIC IMPRESSION | F89: 71.3 | G89: 14.26 | H89: 85.56 | J89: 127.5 | K89: 25.5 | L89: 153
B90: 3 | C90: 2024-052 | D90: SAFER / BIRDIE | F90: 75 | G90: 15 | H90: 90 | J90: 150 | K90: 30 | L90: 180
B91: 4 | C91: 2024-053 | D91: SAFER / SIC IMPRESSION | F91: 66.68 | G91: 13.336 | H91: 80.016 | J91: 155 | K91: 31 | L91: 186
B92: 5 | C92: 2024-054 | D92: ASSOCIATION ARBRES / SIC IMPRESSION | F92: 259.31 | G92: 51.862 | H92: 311.172 | J92: 439 | K92: 87.8 | L92: 526.8
B93: 6 | C93: 2024-055 | D93: SUD ROUTAGE/SUD ROUTAGE | J93: 100 | K93: 20 | L93: 120
B94: 7 | C94: 2024-056 | D94: SOCIETE LINNEENNE DE LYON / JF IMPRESSION | F94: 917 | G94: 91.7 | H94: 1008.7 | J94: 1644 | K94: 164.4 | L94: 1808.4 | M94: 10
B95: 8 | C95: 2024-057 | D95: CNRS / FASADE | F95: 240 | G95: 48 | H95: 288 | J95: 1800 | K95: 360 | L95: 2160
B96: 9 | C96: 2024-058 | D96: Opéra de Lyon / IMPRIMATUR | F96: 340 | G96: 68 | H96: 408 | J96: 467 | K96: 93.4 | L96: 560.4
B97: 10 | C97: 2024-059 | D97: Opéra de Lyon / JF IMPRESSION | F97: 245 | G97: 49 | H97: 294 | J97: 431 | K97: 86.2 | L97: 517.2
B98: 11 | C98: 2024-060 | D98: Opéra de Lyon / IMPRIMATUR | F98: 340 | G98: 68 | H98: 408 | J98: 467 | K98: 93.4 | L98: 560.4
B99: 12 | C99: 2024-061 | D99: FMBDS n°252 / JF IMPRESSION | F99: 1067 | G99: 106.7 | H99: 1173.7 | J99: 1779 | K99: 177.9 | L99: 1956.9 | M99: 10
B100: 13 | C100: 2024-062 | D100: ZESTE DE CREA / SIC IMPRESSION | F100: 76.5 | G100: 15.3 | H100: 91.8 | J100: 128 | K100: 25.6 | L100: 153.6
B101: 14 | C101: 2024-063 | D101: SAFER / IMPRIMATUR | F101: 505 | G101: 101 | H101: 606 | J101: 758 | K101: 151.6 | L101: 909.6
B102: 15 | C102: 2024-064 | D102: HERMES / DS IMPRESSION | F102: 180 | G102: 36 | H102: 216 | J102: 400 | K102: 80 | L102: 480
B103: 16 | C103: 2024-065 | D103: CENTRAL PARC / SIC IMPRESSION | F103: 855.96 | G103: 171.192 | H103: 1027.152 | J103: 1500 | K103: 300 | L103: 1800
B104: 17 | C104: 2024-066 | D104: C.C.A.S / IEL | F104: 275 | G104: 55 | H104: 330 | J104: 412.5 | K104: 82.5 | L104: 495
D105: C.C.A.S / France Enveloppes | F105: 128.2 | G105: 25.64 | H105: 153.84 | J105: 256.4 | K105: 51.28 | L105: 307.68
B106: 18 | C106: 2024-067 | D106: LIBE-LUNE aide à domicile / SIC IMPRESSION | F106: 165.21 | G106: 33.042 | H106: 198.252 | J106: 237 | K106: 47.4 | L106: 284.4
B107: 19 | C107: 2024-068 | D107: FUJIFILM Healthcare France SAS / SIC IMPRESSION | F107: 73.59 | G107: 14.718 | H107: 88.308 | J107: 180 | K107: 36 | L107: 216
B108: 20 | C108: 2024-069 | D108: FMBDS / CODE & CLICS | F108: 190.4 | G108: 38.08 | H108: 228.48 | J108: 399 | K108: 39.9 | L108: 438.9 | M108: 10
B109: 21 | C109: 2024-070 | D109: SAFER / SIC IMPRESSION | F109: 54.94 | G109: 10.988 | H109: 65.928 | J109: 110 | K109: 22 | L109: 132
B110: 22 | C110: 2024-071 | D110: SAFER / SIC IMPRESSION | F110: 50 | G110: 10 | H110: 60 | J110: 120 | K110: 24 | L110: 144
B111: 23 | C111: 2024-072 | D111: ZESTE DE CREA / SIC IMPRESSION | F111: 460.27 | G111: 92.054 | H111: 552.324 | J111: 563 | K111: 112.6 | L111: 675.6
B112: 24 | C112: 2024-073 | D112: TOSHIBA / SIC IMPRESSION | F112: 49.75 | G112: 9.95 | H112: 59.7 | J112: 180 | K112: 36 | L112: 216
B113: 25 | C113: 2024-074 | D113: EKNO / SIC IMPRESSION | F113: 55.18 | G113: 11.036 | H113: 66.216 | J113: 88 | K113: 17.6 | L113: 105.6
B114: 26 | C114: 2024-075 | D114: ASSOCIATION A.R.B.R.E.S / JF IMPRESSION | F114: 580 | G114: 116 | H114: 696 | J114: 1050 | K114: 210 | L114: 1260
B115: 27 | C115: 2024-076 | D115: A.E.D.C.P / JF IMPRESSION | F115: 1875 | G115: 187.5 | H115: 2062.5 | J115: 2380 | K115: 238 | L115: 2618 | M115: 10
B116: 28 | C116: 2024-077 | D116: CARRIER / CODE & CLICS | J116: 3554.4 | K116: 710.88 | L116: 4265.28
B117: 29 | C117: 2024-078 | D117: CARRIER / SIC IMPRESSION | F117: 47.5 | G117: 9.5 | H117: 57 | J117: 126 | K117: 25.2 | L117: 151.2
B118: 30 | C118: 2024-079 | D118: TOSHIBA / SIC IMPRESSION | F118: 42.69 | G118: 8.538 | H118: 51.228 | J118: 90 | K118: 18 | L118: 108
B119: 31 | C119: 2024-080 | D119: SAFER / SIC IMPRESSION | F119: 54.94 | G119: 10.988 | H119: 65.928 | J119: 132 | K119: 26.4 | L119: 158.4
B120: 32 | C120: 2024-081 | D120: CELDA / SIC IMPRESSION | F120: 112.94 | G120: 22.588 | H120: 135.528 | J120: 188 | K120: 37.6 | L120: 225.6
B121: 33 | C121: 2024-082 | D121: CELDA / SIC IMPRESSION | F121: 338.8 | G121: 67.76 | H121: 406.56 | J121: 484 | K121: 96.8 | L121: 580.8
B122: 34 | C122: 2024-083 | D122: JF IMPRESSION et STUDIO 1029 / JF IMPRESSION | J122: 466 | K122: 93.2 | L122: 559.2
B123: 35 | C123: 2024-084 | D123: SUD ROUTAGE / SUD ROUTAGE | J123: 100 | K123: 20 | L123: 120
B124: 36 | C124: 2024-085 | D124: CARRIER / IEL | F124: 586 | G124: 117.2 | H124: 703.2 | J124: 1170 | K124: 234 | L124: 1404
B125: 37 | C125: 2024-086 | D125: SLH / SIC IMPRESSION | F125: 684.88 | G125: 136.976 | H125: 821.856 | J125: 996 | K125: 199.2 | L125: 1195.2
B126: 38 | C126: 2024-087 | D126: SIC - Réseau ACV France / JF IMPRESSION | F126: 823.5 | G126: 164.7 | H126: 988.2 | J126: 1272 | K126: 254.4 | L126: 1526.4
B127: 39 | C127: 2024-088 | D127: SIC - Réseau ACV France / JF IMPRESSION | F127: 823.5 | G127: 164.7 | H127: 988.2 | J127: 1296 | K127: 259.2 | L127: 1555.2
B128: 40 | C128: 2024-089 | D128: MAISON DE VENTES RICHARD / CODE & CLICS | F128: 144.5 | G128: 28.9 | H128: 173.4 | J128: 289 | K128: 57.8 | L128: 346.8
B129: 41 | C129: 2024-090 | D129: CARRIER / SIC IMPRESSION | F129: 47.5 | G129: 9.5 | H129: 57 | J129: 126 | K129: 25.2 | L129: 151.2
B130: 42 | C130: 2024-091 | D130: SCM GROUP France / SIC IMPRESSION | F130: 70.26 | G130: 14.052 | H130: 84.312 | J130: 165 | K130: 33 | L130: 198
F131: ACHATS | J131: VENTES | M131: Solde et taux TVA
C132: N° de facture | D132: Clients / Fournisseurs | F132: PA HT | G132: TVA | H132: PA TTC | J132: PV HT | K132: TVA | L132: PV TTC
D133: MARS 2024 | F133: =SUM(F88:F130) -> 12973.3 | G133: =SUM(G88:G130) -> 2208.76 | H133: 15182.06 | J133: 29344.8 | K133: 4876.255 | L133: 34221.055 | M133: =K133-G133 -> 2667.495
B134: 1 | C134: 2024-092 | D134: TOSHIBA / JF IMPRESSION | F134: 3359 | G134: 671.8 | H134: 4030.8 | J134: 4199 | K134: 839.8 | L134: 5038.8
B135: 2 | C135: 2024-093 | D135: SIC - Réseau ACV France / JF IMPRESSION | F135: 849.85 | G135: 169.97 | H135: 1019.82 | J135: 1280 | K135: 256 | L135: 1536
B136: 3 | C136: 2024-094 | D136: SIC - Réseau ACV France / JF IMPRESSION | F136: 890 | G136: 178 | H136: 1068 | J136: 1329 | K136: 265.8 | L136: 1594.8
B137: 4 | C137: 2024-095 | D137: SUNKISS MATHERM / SIC IMPRESSION | F137: 168.08 | G137: 33.616 | H137: 201.696 | J137: 456 | K137: 91.2 | L137: 547.2
B138: 5 | C138: 2024-096 | D138: LIBE-LUNE aide à domicile / SIC IMPRESSION | F138: 79.83 | G138: 15.966 | H138: 95.796 | J138: 157 | K138: 31.4 | L138: 188.4
B139: 6 | C139: 2024-097 | D139: HERMES / DS IMPRESSION | F139: 240.27 | G139: 48.054 | H139: 288.324 | J139: 720 | K139: 144 | L139: 864
B140: 7 | C140: 2024-098 | D140: CHAPONNIERE & FIRMENICH SA / JF IMPRESSION | F140: 2460 | G140: 492 | H140: 2952 | J140: 4990 | K140: 0 | L140: 4990 | M140: 0
B141: 8 | C141: 2024-099 | D141: ZESTE DE CREA / SIC IMPRESSION | F141: 129 | G141: 25.8 | H141: 154.8 | J141: 153 | K141: 30.6 | L141: 183.6
B142: 9 | C142: 2024-100 | D142: SOLADIS / SIC IMPRESSION | F142: 30.6 | G142: 6.12 | H142: 36.72 | J142: 186 | K142: 37.2 | L142: 223.2
B143: 10 | C143: 2024-101 | D143: CARRIER / SIC IMPRESSION | F143: 456 | G143: 91.2 | H143: 547.2 | J143: 760 | K143: 152 | L143: 912
B144: 11 | C144: 2024-102 | D144: ACJM / CODE & CLICS | F144: 905.6 | G144: 181.12 | H144: 1086.72 | J144: 1405 | K144: 281 | L144: 1686
B145: 12 | C145: 2024-103 | D145: SOCIETE LINNEENNE DE LYON / JF IMPRESSION | F145: 1162 | G145: 232.4 | H145: 1394.4 | J145: 1788 | K145: 357.6 | L145: 2145.6
B146: 13 | C146: 2024-104 | D146: EKNO / COPIDEM | F146: 57.4 | G146: 11.48 | H146: 68.88 | J146: 145 | K146: 29 | L146: 174
B147: 14 | C147: 2024-105 | D147: CELDA / SIC IMPRESSION | F147: 157.31 | G147: 31.462 | H147: 188.772 | J147: 235 | K147: 47 | L147: 282
B148: 15 | C148: 2024-106 | D148: CELDA / SIC IMPRESSION / F.A.S.A.D.E | F148: 560.43 | G148: 112.086 | H148: 672.516 | J148: 1130 | K148: 226 | L148: 1356
F149: ACHATS | J149: VENTES | M149: Solde et taux TVA
C150: N° de facture | D150: Clients / Fournisseurs | F150: PA HT | G150: TVA | H150: PA TTC | J150: PV HT | K150: TVA | L150: PV TTC
D151: AVRIL 2024 | F151: =SUM(F134:F148) -> 11505.37 | G151: =SUM(G134:G148) -> 2301.074 | H151: 13806.444 | J151: 18933 | K151: 2788.6 | L151: 21721.6 | M151: =K151-G151 -> 487.526
B152: 1 | C152: 2024-107 | D152: SUD ROUTAGE / SUD ROUTAGE | J152: 100 | K152: 20 | L152: 120
B153: 2 | C153: 2024-108 | D153: JF IMPRESSION / JF IMPRESSION | J153: 443.4 | K153: 88.68 | L153: 532.08
B154: 3 | C154: 2024-109 | D154: CARRIER / SIC IMPRESSION - CODE&CLICS | F154: 1074.38 | G154: 214.876 | H154: 1289.256 | J154: 4542 | K154: 908.4 | L154: 5450.4
B155: 4 | C155: 2024-110 | D155: CELDA / SIC IMPRESSION | F155: 316.5 | G155: 63.3 | H155: 379.8 | J155: 741 | K155: 148.2 | L155: 889.2
B156: 5 | C156: 2024-111 | D156: SAFER / SIC IMPRESSION | F156: 49.68 | G156: 9.936 | H156: 59.616 | J156: 130 | K156: 26 | L156: 156
B157: 6 | C157: 2024-112 | D157: LIBE-LUNE aide à domicile / SIC IMPRESSION | F157: 119.81 | G157: 23.962 | H157: 143.772 | J157: 240 | K157: 48 | L157: 288
B158: 7 | C158: 2024-113 | D158: SAFER / DS IMPRESSION | F158: 170.42 | G158: 34.084 | H158: 204.504 | J158: 241 | K158: 48.2 | L158: 289.2
B159: 8 | C159: 2024-114 | D159: FUJIFILM Healthcare France SAS / SIC IMPRESSION | F159: 43.32 | G159: 8.664 | H159: 51.984 | J159: 87 | K159: 17.4 | L159: 104.4
B160: 9 | C160: 2024-115 | D160: BOSKOOP COMMUNICATION / SIC IMPRESSION | F160: 291 | G160: 58.2 | H160: 349.2 | J160: 370 | K160: 74 | L160: 444
B161: 10 | C161: 2024-116 | D161: TOSHIBA / CODE & CLICS | F161: 59.5 | G161: 11.9 | H161: 71.4 | J161: 140 | K161: 28 | L161: 168
B162: 11 | C162: 2024-117 | D162: SAFER / CODE & CLICS | F162: 115.45 | G162: 23.09 | H162: 138.54 | J162: 193 | K162: 38.6 | L162: 231.6
B163: 12 | C163: 2024-118 | D163: LIBE-LUNE aide à domicile / CODE & CLICS | F163: 280.5 | G163: 56.1 | H163: 336.6 | J163: 381 | K163: 76.2 | L163: 457.2
B164: 13 | C164: 2024-119 | D164: TOSHIBA / JF IMPRESSION | F164: 3875 | G164: 775 | H164: 4650 | J164: 4844 | K164: 968.8 | L164: 5812.8
B165: 14 | C165: 2024-120 | D165: ASSOCIATION A.R.B.R.E.S / JF IMPRESSION | F165: 680 | G165: 136 | H165: 816 | J165: 1260 | K165: 252 | L165: 1512
B166: 15 | C166: 2024-121 | D166: SAFER / CODE & CLICS | F166: 207.4 | G166: 41.48 | H166: 248.88 | J166: 350 | K166: 70 | L166: 420
B167: 16 | C167: 2024-122 | D167: CELDA / SIC IMPRESSION | F167: 90.98 | G167: 18.196 | H167: 109.176 | J167: 240 | K167: 48 | L167: 288
B168: 17 | C168: 2024-123 | D168: CARRIER / SIC IMPRESSION - CODE&CLICS | F168: 883.35 | G168: 176.67 | H168: 1060.02 | J168: 2539.2 | K168: 507.84 | L168: 3047.04
B169: 18 | C169: 2024-124 | D169: CARRIER / APIX MEDIA | F169: 440 | G169: 88 | H169: 528 | J169: 880 | K169: 176 | L169: 1056
B170: 19 | C170: 2024-125 | D170: TOSHIBA / COPIDEM | F170: 20 | G170: 4 | H170: 24 | J170: 80 | K170: 16 | L170: 96
B171: 20 | C171: 2024-126 | D171: SIC - Réseau ACV France / COPIDEM | F171: 102 | G171: 20.4 | H171: 122.4 | J171: 158 | K171: 31.6 | L171: 189.6
B172: 21 | C172: 2024-127 | D172: EKNO / COPIDEM | F172: 83 | G172: 16.6 | H172: 99.6 | J172: 192 | K172: 38.4 | L172: 230.4
B173: 22 | C173: 2024-128 | D173: Conservatoire d’espaces naturels Rhône-Alpes / DS IMPRESSION | F173: 1396 | G173: 279.2 | H173: 1675.2 | J173: 1975 | K173: 395 | L173: 2370
B174: 23 | C174: 2024-129 | D174: SUD ROUTAGE / SUD ROUTAGE | J174: 100 | K174: 20 | L174: 120
B175: 24 | C175: 2024-130 | D175: JF IMPRESSION / JF IMPRESSION | J175: 396 | K175: 79.2 | L175: 475.2
F176: ACHATS | J176: VENTES | M176: Solde et taux TVA
C177: N° de facture | D177: Clients / Fournisseurs | F177: PA HT | G177: TVA | H177: PA TTC | J177: PV HT | K177: TVA | L177: PV TTC
D178: MAI 2024 | F178: =SUM(F152:F175) -> 10298.29 | G178: =SUM(G152:G175) -> 2059.658 | H178: 12357.948 | J178: 20622.6 | K178: 4124.52 | L178: 24747.12 | M178: =K178-G178 -> 2064.862
B179: 1 | C179: 2024-131 | D179: CARRIER / APIX MEDIA | F179: 390 | G179: 78 | H179: 468 | J179: 558 | K179: 111.6 | L179: 669.6
B180: 2 | C180: 2024-132 | D180: ACJM / CODE & CLICS | F180: 437.85 | G180: 87.57 | H180: 525.42 | J180: 543 | K180: 108.6 | L180: 651.6
B181: 3 | C181: 2024-133 | D181: INSERM / CODE & CLICS | F181: 447.65 | G181: 89.53 | H181: 537.18 | J181: 972 | K181: 194.4 | L181: 1166.4
B182: 4 | C182: 2024-134 | D182: FMBDS / JF IMPRESSION | F182: 1067 | G182: 106.7 | H182: 1173.7 | J182: 1779 | K182: 177.9 | L182: 1956.9 | M182: 10
B183: 5 | C183: 2024-135 | D183: RAPHAELE ANIS SARL / SIC IMPRESSION | F183: 154.08 | G183: 30.816 | H183: 184.896 | J183: 312 | K183: 62.4 | L183: 374.4
B184: 6 | C184: 2024-136 | D184: CARRIER / CODE & CLICS - COPIDEM | F184: 235.7 | G184: 47.14 | H184: 282.84 | J184: 548 | K184: 109.6 | L184: 657.6
B185: 7 | C185: 2024-137 | D185: CODE & CLICS / CODE & CLICS | J185: 1248 | K185: 249.6 | L185: 1497.6
B186: 8 | C186: 2024-138 | D186: CODE & CLICS / CODE & CLICS | J186: 1016.35 | K186: 203.27 | L186: 1219.62
B187: 9 | C187: 2024-139 | D187: DE SARS / CODE & CLICS | F187: 1303.9 | G187: 260.78 | H187: 1564.68 | J187: 1823 | K187: 100.265 | L187: 1923.265 | M187: 5.5
B188: 10 | C188: 2024-140 | D188: SLH / CODE & CLICS | F188: 672.35 | G188: 134.47 | H188: 806.82 | J188: 996 | K188: 99.6 | L188: 1095.6 | M188: 10
B189: 11 | C189: 2024-141 | D189: CARRIER / COPIDEM - SIC IMPRESSION | F189: 477.24 | G189: 95.448 | H189: 572.688 | J189: 1968 | K189: 393.6 | L189: 2361.6
B190: 12 | C190: 2024-142 | D190: EKNO / CODE & CLICS | F190: 86.7 | G190: 17.34 | H190: 104.04 | J190: 204 | K190: 40.8 | L190: 244.8
B191: 13 | C191: 2024-143 | D191: CARRIER / SIC IMPRESSION - COPIDEM | F191: 135.22 | G191: 27.044 | H191: 162.264 | J191: 287 | K191: 57.4 | L191: 344.4
B192: 14 | C192: 2024-144 | D192: SUD ROUTAGE / SUD ROUTAGE | J192: 100 | K192: 20 | L192: 120
B193: 15 | C193: 2024-145 | D193: JF IMPRESSION / JF IMPRESSION | J193: 396 | K193: 79.2 | L193: 475.2
B194: 16 | C194: 2024-146 | D194: HERMES / IMPRIMATUR - COPIDEM - BIRDIE | F194: 250 | G194: 50 | H194: 300 | J194: 398 | K194: 79.6 | L194: 477.6
B195: 17 | C195: 2024-147 | D195: HERMES / DS IMPRESSION | F195: 180 | G195: 36 | H195: 216 | J195: 360 | K195: 72 | L195: 432
B196: 18 | C196: 2024-148 | D196: SAFER / COPIDEM | F196: 17 | G196: 3.4 | H196: 20.4 | J196: 100 | K196: 20 | L196: 120
F197: ACHATS | J197: VENTES | M197: Solde et taux TVA
C198: N° de facture | D198: Clients / Fournisseurs | F198: PA HT | G198: TVA | H198: PA TTC | J198: PV HT | K198: TVA | L198: PV TTC
D199: JUIN 2024 | F199: =SUM(F179:F196) -> 5854.69 | G199: =SUM(G179:G196) -> 1064.238 | H199: 6918.928 | J199: 13608.35 | K199: 2179.835 | L199: 15788.185 | M199: =K199-G199 -> 1115.597
B200: 1 | C200: 2024-149 | D200: FUJIFILM Healthcare France SAS / SIC IMPRESSION | F200: 43.32 | G200: 8.664 | H200: 51.984 | J200: 87 | K200: 17.4 | L200: 104.4
B201: 2 | C201: 2024-150 | D201: COMMUNE DE ANDEVILLE / DS IMPRESSION | F201: 838.15 | G201: 167.63 | H201: 1005.78 | J201: 1206 | K201: 241.2 | L201: 1447.2
... 70 more rows
